[Event "9th Porticcio Open 2024"]
[Site "Porticcio"]
[Date "2024.07.04"]
[Round "8.7"]
[White "Nevednichy, Vladislav"]
[Black "Krivenko, Dion"]
[Result "1-0"]
[ECO "B50"]
[WhiteElo "2471"]
[BlackElo "2299"]
[Annotator "RC"]
[PlyCount "155"]
[EventDate "2024.07.01"]
[EventType "swiss"]
[EventCountry "FRA"]
[SourceTitle "playchess.com"]
[Source "ChessBase"]
[SourceQuality "1"]
[TimeControl "5400+30"]

1. e4 {[%emt 0:00:05]} c5 {[%emt 0:03:08]} 2. Nf3 {[%emt 0:00:04]} d6 {[%emt 0:00:04]} 3. c3 {[%emt 0:03:32]} Nf6 {[%emt 0:00:07]} 4. Bd3 {[%emt 0:00:12]} g6 {[%emt 0:02:22]} 5. h3 {[%emt 0:00:31]} Bg7 {[%emt 0:00:18]} 6. Bc2 {[%emt 0:00:08]} O-O {[%emt 0:01:06]} 7. d4 {[%emt 0:00:59]} Nc6 {[%emt 0:01:05]} 8. d5 {[%emt 0:00:47]} Nb8 {[%emt 0:13:35]} 9. O-O {[%emt 0:00:19]} e6 {[%emt 1:13:15]} 10. c4 {[%emt 0:10:31]} b5 11. dxe6 {[%emt 1:18:52]} Bxe6 {[%emt 0:00:00]} 12. cxb5 {[%emt 0:00:00]} a6 13. bxa6 {[%emt 0:00:00]} Nxa6 14. Nc3 {[%emt 0:00:00]} Nb4 {[%emt 0:02:30]} 15. Bf4 {[%emt 0:02:00]} d5 {[%emt 0:00:30]} 16. e5 {[%emt 0:00:30]} Nd7 {[%emt 0:00:00]} 17. a3 {[%emt 0:00:30]} Nxc2 {[%emt 0:01:00]} 18. Qxc2 {[%emt 0:00:00]} Qb6 19. a4 {[%emt 0:01:00]} Qb4 {[%emt 0:01:00]} 20. Bd2 {[%emt 0:00:00]} Qb7 21. Rfe1 {[%emt 0:01:00]} Bf5 {[%emt 0:01:00]} 22. Qd1 {[%emt 0:00:00]} d4 23. Nb5 {[%emt 0:00:00]} Be4 {[%emt 0:01:00]} 24. Bf4 {[%emt 0:01:30]} Bc6 {[%emt 0:00:30]} 25. Qd3 {[%emt 0:00:30]} Nb6 {[%emt 0:00:00]} 26. Nd6 {[%emt 0:00:00]} Qd7 {[%emt 0:00:00]} 27. a5 {[%emt 0:00:00]} Nd5 {[%emt 0:00:00]} 28. Bd2 {[%emt 0:00:00]} Nc7 {[%emt 0:00:17]} 29. Nc4 {[%emt 0:00:00]} Bb5 {[%emt 0:02:13]} 30. b3 {[%emt 0:00:00]} Ne6 {[%emt 0:00:00]} 31. Ng5 {[%emt 0:00:00]} Qd5 {[%emt 0:00:17]} 32. Nb6 {[%emt 0:00:00]} Bxd3 {[%emt 0:00:41]} 33. Nxd5 {[%emt 0:00:00]} Ra6 {[%emt 0:00:27]} 34. Nxe6 {[%emt 0:00:00]} fxe6 {[%emt 0:00:10]} 35. Nb6 {[%emt 0:00:00]} Bc2 {[%emt 0:00:52]} 36. Rac1 {[%emt 0:00:00]} d3 {[%emt 0:00:10]} 37. Re4 {[%emt 0:00:00]} Rf5 {[%emt 0:00:22]} 38. f4 {[%emt 0:00:00]} g5 {[%emt 0:00:22]} 39. Nd7 {[%emt 0:00:00]} gxf4 {[%emt 0:01:00]} 40. Nxc5 {[%emt 0:00:00]} Rc6 {[%emt 0:00:06]} 41. b4 {[%emt 0:00:00]} Bxe5 {[%emt 0:00:58]} 42. a6 {[%emt 0:00:00]} Bb8 {[%emt 0:00:32]} 43. Rxe6 {[%emt 0:01:26]} Rxe6 {[%emt 0:00:10]} 44. Nxe6 {[%emt 0:08:04]} Ba7+ {[%emt 0:01:23]} 45. Nc5 {[%emt 0:00:30]} f3 {[%emt 0:00:30]} 46. Rf1 {[%emt 0:00:30]} Rf6 {[%emt 0:00:00]} 47. Rxf3 Rxa6 {[%emt 0:01:00]} 48. Kf2 {[%emt 0:01:00]} Re6 {[%emt 0:00:30]} 49. Be3 {[%emt 0:00:30]} Bxc5 {[%emt 0:00:30]} 50. bxc5 {[%emt 0:00:30]} Bd1 {[%emt 0:00:30]} 51. Rf4 {[%emt 0:00:30]} Bb3 {[%emt 0:00:00]} 52. Rd4 {[%emt 0:00:00]} Bc2 {[%emt 0:01:00]} 53. Rc4 {[%emt 0:01:00]} Rc6 {[%emt 0:00:00]} 54. Rf4 {[%emt 0:00:00]} Re6 {[%emt 0:01:00]} 55. g4 {[%emt 0:01:00]} Kg7 {[%emt 0:00:30]} 56. Rc4 {[%emt 0:00:30]} Rc6 {[%emt 0:00:00]} 57. Ke1 {[%emt 0:00:00]} Kf6 {[%emt 0:00:00]} 58. Kd2 {[%emt 0:00:00]} Ke5 {[%emt 0:00:29]} 59. Rf4 {[%emt 0:00:00]} Rf6 {[%emt 0:01:31]} 60. Rxf6 {[%emt 0:00:00]} Kxf6 {[%emt 0:00:00]} 61. c6 {[%emt 0:00:00]} Ke6 {[%emt 0:00:22]} 62. c7 {[%emt 0:00:00]} Kd7 {[%emt 0:00:10]} 63. Bf4 {[%emt 0:03:30]} Kc8 {[%emt 0:01:28]} 64. g5 {[%emt 0:00:00]} Kd7 {[%emt 0:00:00]} 65. h4 {[%emt 0:00:00]} Bb3 {[%emt 0:00:00]} 66. Kxd3 {[%emt 0:00:00]} Bf7 {[%emt 0:00:00]} 67. Kd4 {[%emt 0:00:00]} Bh5 {[%emt 0:00:12]} 68. Bg3 {[%emt 0:00:00]} Bf7 {[%emt 0:00:06]} 69. Kc5 {[%emt 0:00:00]} Bh5 {[%emt 0:00:10]} 70. Kb6 {[%emt 0:00:00]} Kc8 {[%emt 0:00:24]} 71. Kc6 {[%emt 0:00:00]} Bf7 {[%emt 0:00:08]} 72. Kd6 {[%emt 0:00:00]} Bh5 {[%emt 0:00:03]} 73. Ke6 {[%emt 0:00:00]} Be8 {[%emt 0:00:14]} 74. Kf6 {[%emt 0:00:00]} Kd7 {[%emt 0:00:04]} 75. Kg7 {[%emt 0:00:00]} Bg6 {[%emt 0:00:06]} 76. Kh6 {[%emt 0:00:00]} Be4 {[%emt 0:00:12]} 77. h5 {[%emt 0:00:00]} Bf5 {[%emt 0:00:05]} 78. Kg7 {[%emt 0:00:00]} 1-0

[Event "9th Porticcio Open 2024"]
[Site "Porticcio"]
[Date "2024.07.04"]
[Round "8.8"]
[White "Anwesh, Upadhyaya"]
[Black "Unuk, Laura"]
[Result "1/2-1/2"]
[ECO "E06"]
[WhiteElo "2354"]
[BlackElo "2324"]
[Annotator "RC"]
[PlyCount "62"]
[EventDate "2024.07.01"]
[EventType "swiss"]
[EventCountry "FRA"]
[SourceTitle "playchess.com"]
[Source "ChessBase"]
[SourceQuality "1"]
[TimeControl "5400+30"]

1. c4 {[%emt 0:10:37]} e6 {[%emt 0:00:30]} 2. g3 {[%emt 0:00:24]} d5 {[%emt 0:00:38]} 3. Bg2 {[%emt 0:00:14]} Nf6 {[%emt 0:01:29]} 4. Nf3 {[%emt 0:00:10]} Be7 {[%emt 0:01:05]} 5. O-O {[%emt 0:00:16]} O-O {[%emt 0:00:07]} 6. d4 {[%emt 0:01:05]} a5 {[%emt 0:00:52]} 7. Nc3 {[%emt 0:02:40]} c6 {[%emt 0:03:43]} 8. b3 {[%emt 0:04:46]} Nbd7 {[%emt 0:28:01]} 9. Qc2 {[%emt 0:03:57]} b5 {[%emt 0:02:02]} 10. cxb5 {[%emt 0:05:24]} cxb5 {[%emt 0:01:53]} 11. Nxb5 {[%emt 0:03:54]} Ba6 {[%emt 0:00:07]} 12. a4 {[%emt 0:01:46]} Rc8 {[%emt 0:03:09]} 13. Qd3 {[%emt 0:00:24]} Ne4 {[%emt 0:02:28]} 14. Bf4 {[%emt 0:10:17]} Rc3 {[%emt 0:30:55]} 15. Qb1 {[%emt 0:04:27]} Bxb5 {[%emt 0:01:22]} 16. axb5 {[%emt 0:00:08]} Qb6 {[%emt 0:00:42]} 17. Ne5 {[%emt 0:16:09]} Nxe5 {[%emt 0:07:51]} 18. Bxe4 {[%emt 0:00:25]} dxe4 {[%emt 0:02:11]} 19. dxe5 {[%emt 0:13:47]} Qxb5 {[%emt 0:00:48]} 20. Qa2 {[%emt 0:04:28]} Rxb3 {[%emt 0:02:28]} 21. Qxa5 {[%emt 0:00:07]} Qxe2 {[%emt 0:01:27]} 22. Qa7 {[%emt 0:02:09]} Bb4 {[%emt 0:00:56]} 23. Qa4 {[%emt 0:02:32]} Qf3 {[%emt 0:01:44]} 24. Rab1 {[%emt 0:06:45]} Rxb1 {[%emt 0:00:21]} 25. Rxb1 {[%emt 0:00:02]} Bc5 {[%emt 0:00:19]} 26. Qc2 {[%emt 0:00:17]} e3 {[%emt 0:04:27]} 27. Qxc5 {[%emt 0:00:21]} Qxf2+ {[%emt 0:00:07]} 28. Kh1 {[%emt 0:00:03]} Qf3+ {[%emt 0:00:15]} 29. Kg1 {[%emt 0:00:06]} Qf2+ {[%emt 0:00:48]} 30. Kh1 {[%emt 0:00:05]} Qf3+ {[%emt 0:00:03]} 31. Kg1 {[%emt 0:00:09]} Qf2+ {[%emt 0:03:12]} 1/2-1/2

[Event "9th Porticcio Open 2024"]
[Site "Porticcio"]
[Date "2024.07.04"]
[Round "8.9"]
[White "Ercoli, Andria"]
[Black "Daulet, Alikhan"]
[Result "0-1"]
[ECO "E51"]
[WhiteElo "1723"]
[BlackElo "1877"]
[Annotator "NA RC"]
[PlyCount "66"]
[EventDate "2024.07.01"]
[EventType "swiss"]
[EventCountry "FRA"]
[SourceTitle "playchess.com"]
[Source "ChessBase"]
[SourceQuality "1"]
[TimeControl "5400+30"]

1. d4 {[%emt 0:00:03]} Nf6 {[%emt 0:00:05]} 2. c4 {[%emt 0:00:09]} e6 {[%emt 0:00:03]} 3. Nc3 {[%emt 0:00:08]} Bb4 {[%emt 0:00:11]} 4. e3 {[%emt 0:00:09]} O-O {[%emt 0:00:13]} 5. Bd2 {[%emt 0:00:20]} d5 {[%emt 0:00:14]} 6. Nf3 {[%emt 0:00:22]} c5 {[%emt 0:00:19]} 7. cxd5 {[%emt 0:00:52]} exd5 {[%emt 0:00:54]} 8. Bd3 {[%emt 0:01:10]} Nc6 {[%emt 0:00:30]} 9. O-O {[%emt 0:00:33]} Bg4 {[%emt 0:02:57]} 10. dxc5 {[%emt 0:01:15]} Bxc5 {[%emt 0:00:40]} 11. Be2 {[%emt 0:02:10]} a6 {[%emt 0:01:47]} 12. Rc1 {[%emt 0:02:03]} Qd6 {[%emt 0:00:30]} 13. a3 {[%emt 0:01:56]} Bb6 {[%emt 0:04:11]} 14. Nd4 {[%emt 0:11:27]} Bc7 {[%emt 0:08:17]} 15. f4 {[%emt 0:01:04]} Bxe2 {[%emt 0:05:46]} 16. Ncxe2 {[%emt 0:01:35]} Ne4 {[%emt 0:10:44]} 17. Nf5 {[%emt 0:06:02]} Qd7 {[%emt 0:01:39]} 18. Ned4 {[%emt 0:02:20]} Nxd4 {[%emt 0:00:45]} 19. Nxd4 {[%emt 0:00:42]} Bb6 {[%emt 0:00:27]} 20. Bc3 {[%emt 0:03:53]} Rac8 {[%emt 0:01:35]} 21. Qe2 {[%emt 0:10:08]} Rfe8 {[%emt 0:00:25]} 22. Qd3 {[%emt 0:02:29]} Nd6 {[%emt 0:08:57]} 23. Rfe1 {[%emt 0:12:14]} Re4 {[%emt 0:00:52]} 24. Nf3 {[%emt 0:04:53]} Nf5 {[%emt 0:02:02]} 25. Ne5 {[%emt 0:13:44]} Qe6 {[%emt 0:01:48]} 26. Bd2 {[%emt 0:01:54]} Rxc1 {[%emt 0:01:00]} 27. Bxc1 {[%emt 0:05:45]} Rxf4 {[%emt 0:00:50]} 28. Nf3 {[%emt 0:01:20]} h6 {[%emt 0:00:35]} 29. Bd2 {[%emt 0:01:37]} Re4 {[%emt 0:00:23]} 30. Kf2 {[%emt 0:00:24]} Nd6 {[%emt 0:04:27]} 31. b3 {[%emt 0:01:01]} Qf5 {[%emt 0:01:19]} 32. Bc3 {[%emt 0:01:45]} Rxe3 {[%emt 0:00:35]} 33. Qxf5 {[%emt 0:00:52]} Rxc3+ {[%emt 0:00:06]} 0-1

[Event "9th Porticcio Open 2024"]
[Site "Porticcio"]
[Date "2024.07.04"]
[Round "8.11"]
[White "Don Ignazi, Pierre Ange"]
[Black "Coriat, Caroline"]
[Result "0-1"]
[ECO "C00"]
[WhiteElo "1870"]
[BlackElo "1852"]
[Annotator "NA RC"]
[PlyCount "58"]
[EventDate "2024.07.01"]
[EventType "swiss"]
[EventCountry "FRA"]
[SourceTitle "playchess.com"]
[Source "ChessBase"]
[SourceQuality "1"]
[TimeControl "5400+30"]

1. e4 {[%emt 0:00:15]} e6 {[%emt 0:00:06]} 2. Qe2 {[%emt 0:00:07]} d5 {[%emt 0:06:31]} 3. exd5 {[%emt 0:01:46]} Qxd5 {[%emt 0:00:14]} 4. Nc3 {[%emt 0:00:51]} Qa5 {[%emt 0:09:32]} 5. Nf3 {[%emt 0:01:57]} Nf6 {[%emt 0:04:53]} 6. g3 {[%emt 0:02:46]} Be7 {[%emt 0:02:29]} 7. Bg2 {[%emt 0:00:39]} Nc6 {[%emt 0:02:55]} 8. O-O {[%emt 0:00:18]} Bd7 {[%emt 0:04:56]} 9. d3 {[%emt 0:01:45]} h6 {[%emt 0:18:03]} 10. a3 {[%emt 0:06:12]} Qh5 {[%emt 0:04:53]} 11. Re1 {[%emt 0:04:05]} O-O {[%emt 0:05:51]} 12. b3 {[%emt 0:16:25]} Bd6 {[%emt 0:04:33]} 13. Bb2 {[%emt 0:03:46]} Rae8 {[%emt 0:03:26]} 14. Rad1 {[%emt 0:12:59]} e5 {[%emt 0:04:38]} 15. Qf1 {[%emt 0:00:42]} Bg4 {[%emt 0:00:47]} 16. Re3 {[%emt 0:05:16]} Nd4 {[%emt 0:00:58]} 17. Nxd4 {[%emt 0:02:57]} exd4 {[%emt 0:01:51]} 18. Rxe8 {[%emt 0:01:07]} Rxe8 {[%emt 0:00:32]} 19. f3 {[%emt 0:12:05]} dxc3 {[%emt 0:01:38]} 20. Bxc3 {[%emt 0:00:43]} Qc5+ {[%emt 0:01:46]} 21. Qf2 {[%emt 0:01:58]} Qxc3 {[%emt 0:01:52]} 22. fxg4 {[%emt 0:00:03]} Nxg4 {[%emt 0:00:55]} 23. Qd2 {[%emt 0:01:21]} Qxd2 {[%emt 0:01:09]} 24. Rxd2 {[%emt 0:00:06]} Re1+ {[%emt 0:01:20]} 25. Bf1 {[%emt 0:00:01]} Ne3 {[%emt 0:01:24]} 26. Kf2 {[%emt 0:00:01]} Nxf1 {[%emt 0:00:22]} 27. Kxe1 {[%emt 0:01:49]} Nxd2 {[%emt 0:00:06]} 28. Kxd2 {[%emt 0:00:01]} Bxa3 {[%emt 0:00:11]} 29. Kc3 {[%emt 0:00:01]} Bd6 {[%emt 0:00:17]} 0-1

[Event "9th Porticcio Open 2024"]
[Site "Porticcio"]
[Date "2024.07.05"]
[Round "9.1"]
[White "Lagarde, Maxime"]
[Black "Clarke, Brandon G I"]
[Result "1-0"]
[ECO "E94"]
[WhiteElo "2604"]
[BlackElo "2498"]
[Annotator "TA"]
[PlyCount "31"]
[EventDate "2024.07.01"]
[EventType "swiss"]
[EventCountry "FRA"]
[SourceTitle "playchess.com"]
[Source "ChessBase"]
[SourceQuality "1"]
[TimeControl "5400+30"]

{[%evp 20,31,27,22,22,33,73,54,62,20,276,264,276,281]} 1. c4 {[%emt 0:00:01]} Nf6 {[%emt 0:00:14]} 2. Nc3 {[%emt 0:00:04]} g6 {[%emt 0:00:17]} 3. Nf3 {[%emt 0:00:04]} Bg7 {[%emt 0:00:11]} 4. e4 {[%emt 0:00:04]} d6 {[%emt 0:00:06]} 5. d4 {[%emt 0:00:04]} O-O {[%emt 0:00:08]} 6. Be2 {[%emt 0:00:03]} e5 {[%emt 0:00:16]} 7. O-O {[%emt 0:00:04]} exd4 {[%emt 0:00:20]} 8. Nxd4 {[%emt 0:00:05]} Re8 {[%emt 0:00:17]} 9. f3 {[%emt 0:00:09]} c6 {[%emt 0:00:21]} 10. Nc2 {[%emt 0:17:23]} Na6 {[%emt 0:06:31]} 11. Kh1 {[%emt 0:01:01]} Nc7 {[%emt 0:06:38]} 12. Bg5 {[%emt 0:09:38]} d5 {[%emt 0:07:40]} 13. cxd5 {[%emt 0:16:27]} cxd5 {[%emt 0:00:42]} 14. Qd2 {[%emt 0:02:27] White is more active.} dxe4 $2 {[%emt 0:06:55][%mdl 8192] [#]} (14... h6 $11 {and Black has nothing to worry.} 15. Bf4 (15. Bxh6 dxe4 16. Qc1 Qd6 $11) 15... Ne6) 15. Qxd8 $18 {[%emt 0:02:20]} Rxd8 {[%emt 0:00:03]} 16. fxe4 {[%emt 0:00:12] Weighted Error Value: White=0.12 (very precise) /Black=1.23.  Loses game:     	---       	Black=1      Inaccurate:     	White=1     	Black=1      OK:         	White=1     	---        Best:        	White=3     	---} 1-0

[Event "9th Porticcio Open 2024"]
[Site "Porticcio"]
[Date "2024.07.05"]
[Round "9.2"]
[White "Fedorchuk, Sergey A."]
[Black "Bailet, Pierre"]
[Result "1/2-1/2"]
[ECO "C67"]
[WhiteElo "2546"]
[BlackElo "2491"]
[Annotator "TA"]
[PlyCount "59"]
[EventDate "2024.07.01"]
[EventType "swiss"]
[EventCountry "FRA"]
[SourceTitle "playchess.com"]
[Source "ChessBase"]
[SourceQuality "1"]
[TimeControl "5400+30"]

{[%evp 20,59,21,23,29,13,12,5,18,0,0,0,3,2,0,0,8,0,0,0,0,0,0,0,0,0,0,0,0,0,0,0,0,0,0,0,0,0,0,0,0,-6]} 1. e4 {[%emt 0:00:04]} e5 {[%emt 0:00:11]} 2. Nf3 {[%emt 0:00:17]} Nc6 {[%emt 0:00:15]} 3. Bb5 {[%emt 0:00:52]} Nf6 {[%emt 0:00:39][%cal Bg8f6,Bf6e4,Be4d6,Bd6f5,Bf5h4,Bh4f3][%mdl 32]} 4. O-O {[%emt 0:02:13][%cal Bh1f1,Bf1e1,Be1e5][%mdl 32]} Nxe4 {[%emt 0:00:23]} 5. Re1 {[%emt 0:00:59]} Nd6 {[%emt 0:00:59]} 6. Nxe5 {[%emt 0:00:37]} Be7 {[%emt 0:00:58]} 7. Bf1 {[%emt 0:00:37]} Nxe5 {[%emt 0:00:49]} 8. Rxe5 {[%emt 0:00:13]} O-O {[%emt 0:00:14]} 9. d4 {[%emt 0:01:33]} Bf6 {[%emt 0:02:28]} 10. Re1 {[%emt 0:01:18]} Nf5 {[%emt 0:02:44]} 11. c3 {[%emt 0:03:42]} d5 {[%emt 0:01:25]} 12. Bf4 {[%emt 0:06:45]} c6 {[%emt 0:03:58] The position is equal.} 13. Nd2 {[%emt 0:02:44]} Nh4 {[%emt 0:05:33]} 14. Nf3 {[%emt 0:09:32]} Bg4 {[%emt 0:06:10]} 15. Be2 {[%emt 0:00:07]} Nxf3+ {[%emt 0:04:47]} 16. Bxf3 {[%emt 0:00:07]} Bxf3 {[%emt 0:00:32]} 17. Qxf3 {[%emt 0:00:08]} Re8 {[%emt 0:04:33]} 18. Re2 {[%emt 0:04:15]} Rxe2 {[%emt 0:01:39]} 19. Qxe2 {[%emt 0:00:04]} Qe7 {[%emt 0:01:03]} 20. Re1 {[%emt 0:02:57]} Re8 {[%emt 0:03:14]} 21. Qxe7 {[%emt 0:02:46]} Rxe7 {[%emt 0:00:11]} 22. Rxe7 {[%emt 0:00:05]} Bxe7 $11 {[%emt 0:00:11][%mdl 4096] Endgame. KB-KB} 23. f3 {[%emt 0:00:16]} f6 {[%emt 0:00:44]} 24. Kf2 {[%emt 0:00:10]} Kf7 {[%emt 0:00:07]} 25. Ke2 {[%emt 0:00:14]} Ke6 {[%emt 0:00:15]} 26. Kd3 {[%emt 0:00:08]} Bf8 {[%emt 0:00:25]} 27. Ke3 {[%emt 0:00:10]} Be7 {[%emt 0:00:08]} 28. Kd3 {[%emt 0:00:05]} Bf8 {[%emt 0:00:05]} 29. Ke3 {[%emt 0:00:06]} Be7 {[%emt 0:00:05]} 30. Kd3 {[%emt 1:02:26] A rather calm draw.   Weighted Error Value: White=0.04 (flawless) /Black=0.03 (flawless) .  OK:         	White=4     	Black=7      Best:        	White=1     	---} 1/2-1/2

[Event "9th Porticcio Open 2024"]
[Site "Porticcio"]
[Date "2024.07.05"]
[Round "9.3"]
[White "Hamdouchi, Hicham"]
[Black "Bulmaga, Irina"]
[Result "1/2-1/2"]
[ECO "C67"]
[WhiteElo "2527"]
[BlackElo "2391"]
[Annotator "TA"]
[PlyCount "93"]
[EventDate "2024.07.01"]
[EventType "swiss"]
[EventCountry "FRA"]
[SourceTitle "playchess.com"]
[Source "ChessBase"]
[SourceQuality "1"]
[TimeControl "5400+30"]

{[%evp 17,92,20,27,0,16,16,17,8,15,0,20,20,48,49,53,43,43,43,50,50,43,43,57,57,57,57,57,57,57,57,57,47,51,47,55,55,68,40,68,68,68,68,68,68,68,68,68,51,51,51,51,29,29,0,50,29,36,37,51,51,66,0,0,0,0,0,0,0,0,0,0,0,0,0,0,0,0]} 1. e4 {[%emt 0:00:06]} e5 {[%emt 0:00:06]} 2. Nf3 {[%emt 0:00:13]} Nc6 {[%emt 0:00:07]} 3. Bb5 {[%emt 0:00:32]} Nf6 {[%emt 0:00:18][%cal Bg8f6,Bf6e4,Be4d6,Bd6f5,Bf5h4][%mdl 32]} 4. O-O {[%emt 0:00:46]} Nxe4 {[%emt 0:00:15]} 5. d4 {[%emt 0:00:06]} Nd6 {[%emt 0:00:11]} 6. Bxc6 {[%emt 0:00:08]} dxc6 {[%emt 0:00:07]} 7. dxe5 {[%emt 0:00:06]} Nf5 {[%emt 0:00:09]} 8. Qxd8+ {[%emt 0:00:06]} Kxd8 {[%emt 0:00:06]} 9. Nc3 {[%emt 0:00:09]} Be7 {[%emt 0:01:07]} 10. Bf4 {[%emt 0:01:25]} Nh4 {[%emt 0:02:58]} 11. Rad1+ {[%emt 0:05:17]} Ke8 {[%emt 0:02:26]} 12. Nd4 {[%emt 0:02:59][%cal Oe5e6]} Nf5 {[%emt 0:02:31]} 13. Nce2 {[%emt 0:04:31]} Nxd4 {[%emt 0:09:25]} 14. Nxd4 {[%emt 0:00:19]} Be6 {[%emt 0:02:01]} 15. Nxe6 {[%emt 0:01:03]} fxe6 {[%emt 0:00:19]} 16. Be3 {[%emt 0:00:03]} a5 {[%emt 0:02:48]} 17. f4 {[%emt 0:09:02]} g6 {[%emt 0:04:54]} 18. Kf2 {[%emt 0:01:04]} Rd8 {[%emt 0:07:53]} 19. Rxd8+ {[%emt 0:01:20]} Bxd8 $14 {[%emt 0:04:35][%mdl 4096] Endgame. KRB-KRB} 20. Kf3 {[%emt 0:06:24]} Be7 {[%emt 0:03:45]} 21. Rd1 {[%emt 0:01:24]} h5 {[%emt 0:02:00]} 22. g3 {[%emt 0:00:12]} b6 {[%emt 0:02:07]} 23. h3 {[%emt 0:06:46]} Rh7 {[%emt 0:00:33]} 24. Kg2 {[%emt 0:01:15]} Rh8 {[%emt 0:03:17]} 25. a4 {[%emt 0:00:48]} Rh7 {[%emt 0:01:13]} 26. b3 {[%emt 0:00:12]} Rh8 {[%emt 0:05:11]} 27. c4 {[%emt 0:04:53] White is more active.} Bc5 {[%emt 0:04:35]} 28. Bxc5 {[%emt 0:14:35]} bxc5 {[%emt 0:00:03] KR-KR} 29. Kf3 {[%emt 0:00:05]} Ke7 {[%emt 0:02:47]} 30. Rd3 {[%emt 0:00:13]} Rh7 {[%emt 0:03:24]} 31. Kg2 {[%emt 0:03:41]} Rh8 {[%emt 0:06:37]} 32. g4 {[%emt 0:01:56]} hxg4 {[%emt 0:01:24]} 33. hxg4 {[%emt 0:00:19]} Rh4 {[%emt 0:00:29]} 34. Rg3 {[%emt 0:05:49]} Kf7 {[%emt 0:01:47]} 35. Rd3 {[%emt 0:06:24]} Ke7 {[%emt 0:00:38] Against Rd7+} 36. Rh3 {[%emt 0:01:24]} Rxh3 {[%emt 0:05:13]} 37. Kxh3 $11 {[%emt 0:00:18] KP-KP} Kf8 {[%emt 0:00:19]} 38. Kh4 {[%emt 0:04:41]} Kf7 {[%emt 0:00:09]} 39. Kg5 {[%emt 0:02:03]} (39. Kg3 $14) 39... Kg7 {[%emt 0:00:03] The position is equal.} 40. f5 {[%emt 0:00:50]} gxf5 {[%emt 0:00:42]} 41. gxf5 {[%emt 0:00:10]} exf5 {[%emt 0:00:11]} 42. Kxf5 {[%emt 0:00:12] [#] Threatening mate with e6.} Kf7 {[%emt 0:00:02]} 43. e6+ {[%emt 0:00:27]} Ke7 {[%emt 0:00:03]} 44. Ke5 {[%emt 0:00:07]} Ke8 {[%emt 0:00:23]} 45. Kf6 {[%emt 0:00:20] White threatens e7 and mate.} Kf8 {[%emt 0:00:09]} 46. e7+ {[%emt 0:00:53]} Ke8 {[%emt 0:00:03]} 47. Ke6 {[%emt 0:18:24] Weighted Error Value: White=0.07 (flawless) /Black=0.05 (flawless) .  Mistake:       	White=1     	---        Inaccurate:     	White=1     	Black=2      OK:         	White=8     	Black=15     Best:        	---       	Black=3} 1/2-1/2

[Event "9th Porticcio Open 2024"]
[Site "Porticcio"]
[Date "2024.07.05"]
[Round "9.4"]
[White "Rakotomaharo, Fy Antenaina"]
[Black "Batsiashvili, Nino"]
[Result "1-0"]
[ECO "C50"]
[WhiteElo "2448"]
[BlackElo "2450"]
[Annotator "RC"]
[PlyCount "135"]
[EventDate "2024.07.01"]
[EventType "swiss"]
[EventCountry "FRA"]
[SourceTitle "playchess.com"]
[Source "ChessBase"]
[SourceQuality "1"]
[TimeControl "5400+30"]

1. e4 {[%emt 0:02:02]} e5 {[%emt 0:00:04]} 2. Nf3 {[%emt 0:00:17]} Nc6 {[%emt 0:00:04]} 3. Bc4 {[%emt 0:00:06]} Nf6 {[%emt 0:00:05]} 4. d3 {[%emt 0:00:04]} Bc5 {[%emt 0:00:08]} 5. Nc3 {[%emt 0:01:04]} a6 {[%emt 0:10:57]} 6. a4 {[%emt 0:02:02]} h6 {[%emt 0:01:34]} 7. h3 {[%emt 0:00:18]} d6 {[%emt 0:00:19]} 8. Be3 {[%emt 0:00:20]} Bxe3 {[%emt 0:13:13]} 9. fxe3 {[%emt 0:00:14]} Be6 {[%emt 0:00:01]} 10. Nd2 {[%emt 0:00:22]} Ne7 {[%emt 0:04:34]} 11. O-O {[%emt 0:12:16]} Qd7 {[%emt 0:06:35]} 12. Qe1 {[%emt 0:16:39]} Nh7 {[%emt 0:04:49]} 13. d4 {[%emt 0:11:53]} Bxc4 {[%emt 0:02:56]} 14. Nxc4 {[%emt 0:00:05]} Qe6 {[%emt 0:00:27]} 15. b3 {[%emt 0:01:02]} O-O {[%emt 0:00:45]} 16. Qg3 {[%emt 0:00:57]} f6 {[%emt 0:07:09]} 17. Rad1 {[%emt 0:01:41]} Rad8 {[%emt 0:00:48]} 18. a5 {[%emt 0:03:49]} Ng5 {[%emt 0:04:28]} 19. Kh2 {[%emt 0:16:17]} Rde8 {[%emt 0:05:04]} 20. d5 {[%emt 0:02:45]} Qc8 {[%emt 0:03:04]} 21. h4 {[%emt 0:00:23]} Nh7 {[%emt 0:00:10]} 22. Qh3 {[%emt 0:01:23]} f5 {[%emt 0:01:06]} 23. exf5 {[%emt 0:03:31]} Rxf5 {[%emt 0:00:33]} 24. Rxf5 {[%emt 0:01:25]} Qxf5 {[%emt 0:00:33]} 25. Qxf5 {[%emt 0:00:27]} Nxf5 {[%emt 0:00:02]} 26. Kh3 {[%emt 0:00:09]} Rf8 {[%emt 0:03:07]} 27. Rf1 {[%emt 0:03:36]} Ne7 {[%emt 0:06:23]} 28. Rxf8+ {[%emt 0:00:27]} Kxf8 {[%emt 0:00:03]} 29. e4 {[%emt 0:00:47]} Nf6 {[%emt 0:00:14]} 30. g3 {[%emt 0:04:27]} Ke8 {[%emt 0:00:19]} 31. Kg2 {[%emt 0:00:09]} Kd7 {[%emt 0:01:48]} 32. Kf3 {[%emt 0:00:07]} h5 {[%emt 0:03:52]} 33. Nd1 {[%emt 0:01:55]} g6 {[%emt 0:00:52]} 34. Nf2 {[%emt 0:00:43]} Nc8 {[%emt 0:00:45]} 35. Ne3 {[%emt 0:00:39]} c6 {[%emt 0:01:51]} 36. c4 {[%emt 0:01:24]} cxd5 {[%emt 0:04:14]} 37. exd5 {[%emt 0:08:49]} Ne7 {[%emt 0:02:27]} 38. g4 {[%emt 0:00:09]} hxg4+ {[%emt 0:00:28]} 39. Nfxg4 {[%emt 0:00:05]} Nh5 {[%emt 0:00:32]} 40. Nh6 {[%emt 0:00:04]} Nf4 {[%emt 0:02:01]} 41. Ke4 {[%emt 0:01:38]} Ne2 {[%emt 0:00:38]} 42. b4 {[%emt 0:00:31]} Kc7 {[%emt 0:01:51]} 43. Kf3 {[%emt 0:01:04]} Nd4+ {[%emt 0:00:41]} 44. Kg4 {[%emt 0:00:18]} b6 {[%emt 0:01:01]} 45. axb6+ {[%emt 0:01:11]} Kxb6 {[%emt 0:00:01]} 46. Kg5 {[%emt 0:00:32]} Nf3+ {[%emt 0:00:18]} 47. Kf6 {[%emt 0:00:05]} Nc8 {[%emt 0:00:07]} 48. Ng2 {[%emt 0:01:35]} a5 {[%emt 0:00:53]} 49. bxa5+ {[%emt 0:00:05]} Kxa5 {[%emt 0:00:44]} 50. Kxg6 {[%emt 0:02:52]} Kb4 {[%emt 0:00:33]} 51. h5 {[%emt 0:00:11]} Kxc4 {[%emt 0:00:21]} 52. Nf5 {[%emt 0:00:46]} Nb6 {[%emt 0:01:41]} 53. h6 {[%emt 0:00:42]} Nd7 {[%emt 0:00:01]} 54. Kf7 {[%emt 0:00:36]} Ng5+ {[%emt 0:01:21]} 55. Kg6 {[%emt 0:00:22]} Ne4 {[%emt 0:01:05]} 56. Kg7 {[%emt 0:00:08]} Nef6 {[%emt 0:01:06]} 57. Nge3+ {[%emt 0:00:12]} Kd3 {[%emt 0:03:22]} 58. Ng4 {[%emt 0:00:20]} Nxg4 {[%emt 0:01:05]} 59. h7 {[%emt 0:00:04]} Ke4 {[%emt 0:00:03]} 60. Nxd6+ {[%emt 0:01:42]} Kxd5 {[%emt 0:00:01]} 61. Nf7 {[%emt 0:00:06]} e4 {[%emt 0:00:51]} 62. h8=Q {[%emt 0:00:11]} Ngf6 {[%emt 0:01:20]} 63. Qa8+ {[%emt 0:00:36]} Kd4 {[%emt 0:00:07]} 64. Qa4+ {[%emt 0:00:12]} Kc3 {[%emt 0:03:14]} 65. Nd6 {[%emt 0:00:32]} e3 {[%emt 0:01:00]} 66. Qc4+ {[%emt 0:00:10]} Kd2 {[%emt 0:00:09]} 67. Qd4+ {[%emt 0:00:05]} Ke2 {[%emt 0:00:08]} 68. Nc4 {[%emt 0:00:28]} 1-0